bitfinex/quotes_BTCUSD_20250119
["timestamp","ask_amount","ask_price","bid_price","bid_amount"]
[1737328661197,1.0366561,101500.0,101490.0,0.00089439]
[1737328661402,1.102386,101500.0,101490.0,0.00089439]
[1737328661602,1.102386,101500.0,101480.0,0.00089439]
[1737328661603,0.14529295,101490.0,101480.0,0.00089439]
[1737328661808,0.197133,101460.0,101440.0,0.21422366]
[1737328662008,0.39427,101460.0,101440.0,0.21422366]
[1737328662213,0.098568,101460.0,101450.0,0.09857]
[1737328662444,0.098568,101460.0,101440.0,0.8076115]
[1737328662602,0.295692,101460.0,101440.0,0.8076115]
[1737328662788,0.544224,101470.0,101450.0,0.12157]
[1737328662990,0.098561,101460.0,101450.0,0.12157]
[1737328663192,0.64328684,101470.0,101450.0,0.07891204]
[1737328663384,0.73779833,101470.0,101450.0,0.07891204]
[1737328663604,0.93491333,101470.0,101450.0,0.07891204]
[1737328663829,0.54068533,101470.0,101460.0,0.023]
[1737328664035,0.15050484,101470.0,101460.0,0.023]
[1737328664241,0.24905584,101470.0,101460.0,0.023]
[1737328664852,0.00050484,101470.0,101460.0,0.13342224]
[1737328665083,0.00050484,101470.0,101460.0,0.34357939]
[1737328665312,0.00050484,101470.0,101460.0,0.34259376]
[1737328665964,0.00050484,101470.0,101460.0,0.64926928]
[1737328666280,0.00050484,101470.0,101460.0,0.55722458]
[1737328667001,0.00050484,101470.0,101460.0,0.58022458]
[1737328667150,0.00050484,101470.0,101460.0,0.33571109]
[1737328667515,0.00050484,101470.0,101460.0,0.20327448]
[1737328667763,0.00050484,101470.0,101440.0,0.5018936]
[1737328667975,0.295684,101460.0,101440.0,0.4553936]
[1737328668292,0.00050484,101470.0,101450.0,0.21421266]
[1737328668497,0.19760884,101470.0,101440.0,0.31888248]
[1737328668652,0.19760884,101470.0,101440.0,0.12579699]
[1737328668653,0.09857,101450.0,101440.0,0.12579699]
[1737328668854,0.09858,101440.0,101430.0,0.00089544]
[1737328669276,0.19309349,101440.0,101430.0,0.00089544]
[1737328670282,0.09858,101440.0,101430.0,0.00089544]
[1737328670439,0.5658934,101440.0,101430.0,0.00089544]
[1737328670655,0.49976901,101440.0,101430.0,0.00089544]
[1737328670863,1.09525006,101440.0,101430.0,0.00089544]
[1737328671456,0.29843764,101430.0,101420.0,0.00089565]
[1737328671653,0.39295113,101430.0,101420.0,0.00089565]
[1737328672091,0.39295113,101430.0,101400.0,0.0153149]
[1737328672092,0.47140891,101410.0,101400.0,0.0153149]
[1737328672267,0.53415435,101410.0,101400.0,0.0153149]
[1737328672449,0.098638,101380.0,101370.0,0.00089607]
[1737328672650,0.60030774,101380.0,101370.0,0.00089607]
[1737328672915,0.98510774,101380.0,101370.0,0.00089607]
[1737328673125,0.91898335,101380.0,101370.0,0.00089607]
[1737328673325,0.72795149,101380.0,101370.0,0.00089607]
[1737328673544,0.40927588,101380.0,101370.0,0.00089607]
[1737328673702,0.72795149,101380.0,101370.0,0.00089607]
[1737328673885,0.57795149,101380.0,101370.0,0.00089607]
[1737328674119,0.60418434,101400.0,101370.0,0.09954107]
[1737328674306,0.29175249,101400.0,101370.0,0.19522877]
[1737328674511,0.098638,101380.0,101370.0,0.1514018]
[1737328674869,0.19315149,101380.0,101370.0,0.00089607]
[1737328675073,0.5659514,101380.0,101370.0,0.00089607]
[1737328675427,0.5659514,101380.0,101360.0,0.00078738]
[1737328675428,0.00880393,101370.0,101360.0,0.00078738]
[1737328675599,0.88194094,101370.0,101360.0,0.00078738]
[1737328675801,0.97645443,101370.0,101360.0,0.00078738]
[1737328676219,0.88194094,101370.0,101360.0,0.00078738]
[1737328676780,0.88244484,101370.0,101360.0,0.00078738]
[1737328677095,0.50034091,101370.0,101360.0,0.00078738]
[1737328677502,0.098687,101330.0,101320.0,0.00089565]
[1737328677758,0.19320049,101330.0,101320.0,0.00089565]
[1737328678781,0.19370408,101330.0,101320.0,0.00089565]
[1737328678977,0.09919059,101330.0,101320.0,0.00089565]
[1737328679193,0.00050359,101330.0,101320.0,0.79708792]
[1737328679350,0.00050359,101330.0,101320.0,0.7339389]
[1737328679549,0.295905,101390.0,101370.0,0.098647]
[1737328679836,0.09451349,101390.0,101370.0,0.31293866]
[1737328680007,0.19314749,101390.0,101370.0,0.11564366]
[1737328680150,0.39042049,101390.0,101370.0,0.11564366]
[1737328680574,0.19314749,101390.0,101370.0,0.25883779]
[1737328680769,0.19314749,101390.0,101370.0,0.16034497]
[1737328680922,0.19315149,101380.0,101370.0,0.00015418]
[1737328681326,0.09451349,101380.0,101370.0,0.00015418]
[1737328681527,0.19315149,101380.0,101370.0,0.00015418]
[1737328681734,0.9489514,101380.0,101370.0,0.00015418]
[1737328681939,0.03435634,101360.0,101320.0,0.37190892]
[1737328682138,0.296046,101340.0,101320.0,0.569459]
[1737328682322,0.48924649,101340.0,101320.0,0.23949339]
[1737328682524,0.446007,101350.0,101320.0,0.66815]
[1737328682743,0.098679,101340.0,101320.0,0.56945]
[1737328682899,0.296035,101340.0,101320.0,0.56945]
[1737328683105,0.098687,101330.0,101320.0,0.0778251]
[1737328683326,0.098687,101330.0,101320.0,0.00104973]
[1737328683696,0.5660004,101330.0,101320.0,0.00104973]
[1737328684147,0.49987601,101330.0,101320.0,0.00104973]
[1737328684569,0.197434,101300.0,101280.0,0.03387561]
[1737328684768,0.54071349,101290.0,101280.0,0.00050359]
[1737328685348,1.18086974,101290.0,101280.0,0.00050359]
[1737328685581,1.11474535,101290.0,101280.0,0.00050359]
[1737328685785,1.11474535,101290.0,101260.0,0.00089607]
[1737328685786,0.098745,101270.0,101260.0,0.00089607]
[1737328685985,0.5660584,101270.0,101260.0,0.00089607]
[1737328686115,0.44373922,101270.0,101260.0,0.00089607]
[1737328686305,0.97821458,101270.0,101260.0,0.00089607]
[1737328686508,0.94385824,101270.0,101260.0,0.00089607]
[1737328686919,0.20714945,101250.0,101240.0,0.00308866]
[1737328687118,0.30166294,101250.0,101240.0,0.00308866]
[1737328688141,0.20340109,101250.0,101210.0,0.22090317]
[1737328688341,0.098788,101230.0,101210.0,0.29330834]
[1737328688584,0.39087249,101230.0,101210.0,0.29330834]
[1737328688759,0.57834887,101250.0,101220.0,0.34710727]
[1737328688976,0.00050315,101250.0,101230.0,0.37007227]
[1737328689341,0.098784,101230.0,101210.0,0.44989794]
[1737328689540,0.098794,101220.0,101210.0,0.11654267]
[1737328689706,0.19330749,101220.0,101210.0,0.00089901]
[1737328690290,0.5661074,101220.0,101210.0,0.00089901]
[1737328690706,0.69342938,101210.0,101200.0,0.02191873]
[1737328690927,0.72181848,101210.0,101200.0,0.0157414]
[1737328691367,0.91285034,101210.0,101200.0,0.0157414]
[1737328691825,0.49999301,101210.0,101200.0,0.00964041]
[1737328692137,0.50049585,101210.0,101200.0,0.00964041]
[1737328692274,0.248814,101200.0,101190.0,0.00219006]
[1737328692471,0.34332749,101200.0,101190.0,6e-08]
[1737328692705,0.098843,101170.0,101160.0,6e-05]
[1737328692885,0.34335649,101170.0,101160.0,6e-05]
[1737328693289,0.5661564,101170.0,101160.0,6e-05]
[1737328693488,0.40948088,101170.0,101160.0,6e-05]
[1737328693689,0.25948088,101170.0,101160.0,6e-05]
[1737328694008,0.4161564,101170.0,101160.0,0.00021402]
[1737328694207,0.19335649,101170.0,101160.0,0.00021402]
[1737328694608,0.36936766,101170.0,101160.0,0.00021402]
[1737328694815,0.35003201,101170.0,101160.0,0.00021402]
[1737328694977,0.5661564,101170.0,101160.0,0.00021402]
[1737328695176,0.098872,101140.0,101130.0,0.00089901]
[1737328695377,0.098855,101160.0,101130.0,0.11669666]
[1737328695597,0.098864,101150.0,101130.0,0.31444166]
[1737328695801,0.098872,101140.0,101130.0,0.2129511]
[1737328696001,0.098872,101140.0,101130.0,0.06343183]
[1737328696203,0.19338549,101140.0,101130.0,0.11669666]
[1737328696399,0.098872,101140.0,101130.0,0.11669666]
[1737328696571,0.098872,101140.0,101130.0,0.001053]
[1737328696572,0.19338549,101140.0,101130.0,0.001053]
[1737328696809,0.35006101,101140.0,101130.0,0.001053]
[1737328697010,0.50006101,101140.0,101130.0,0.001053]
[1737328697208,0.66069889,101140.0,101130.0,0.001053]
[1737328697447,1.06045523,101140.0,101130.0,0.001053]
[1737328697644,0.62893084,101140.0,101130.0,0.001053]
[1737328697820,0.60054174,101140.0,101130.0,0.001053]
[1737328698380,0.53441735,101140.0,101130.0,0.001053]
[1737328698580,0.96594174,101140.0,101130.0,0.001053]
[1737328698898,0.55878549,101140.0,101130.0,0.001053]
[1737328699107,0.86546101,101140.0,101130.0,0.001053]
[1737328699363,0.86546101,101140.0,101100.0,0.04961731]
[1737328699364,0.098901,101120.0,101100.0,0.04961731]
[1737328699565,0.098902,101110.0,101100.0,0.13153926]
[1737328699763,0.19341549,101110.0,101100.0,0.0158956]
[1737328700119,0.098802,101110.0,101100.0,0.0158956]
[1737328700324,0.19331549,101110.0,101100.0,0.0158956]
[1737328700540,0.19331549,101110.0,101100.0,0.02504781]
[1737328700977,0.19331549,101110.0,101100.0,0.0158956]
[1737328701353,0.34999101,101110.0,101100.0,0.0158956]
[1737328701758,0.19331549,101110.0,101100.0,0.1148066]
[1737328701980,0.01055218,101130.0,101110.0,0.098902]
[1737328701981,0.395555,101130.0,101110.0,0.098902]
[1737328702166,0.098875,101140.0,101120.0,0.24840227]
[1737328702327,0.197747,101140.0,101120.0,0.3012505]
[1737328702534,0.494385,101140.0,101120.0,0.4990315]
[1737328702727,0.19103186,101170.0,101120.0,0.4990315]
[1737328702728,0.098844,101170.0,101160.0,0.098852]
[1737328702981,0.197671,101180.0,101160.0,0.41219566]
[1737328703261,0.09451349,101180.0,101170.0,0.41217366]
[1737328703470,0.43152439,101220.0,101190.0,0.098815]
[1737328703687,0.39093949,101210.0,101200.0,0.098814]
[1737328703829,0.39093949,101210.0,101190.0,0.24833727]
[1737328703830,0.197621,101210.0,101190.0,0.24833727]
[1737328704035,0.00050303,101210.0,101200.0,0.21445166]
[1737328704236,0.00050303,101210.0,101200.0,0.44595027]
[1737328704440,0.00050303,101210.0,101200.0,0.49204797]
[1737328704641,0.00050303,101210.0,101200.0,0.60956146]
[1737328705506,0.09930703,101210.0,101200.0,0.17878131]
[1737328705892,0.00050303,101210.0,101200.0,0.21445766]
[1737328706083,0.00050303,101210.0,101200.0,0.24833327]
[1737328706274,0.00050303,101210.0,101200.0,0.03387561]
[1737328706275,0.09930703,101210.0,101200.0,0.03387561]
[1737328706474,0.098814,101200.0,101190.0,0.22541927]
[1737328706618,0.29691903,101210.0,101190.0,0.5938333]
[1737328706827,0.00050303,101210.0,101200.0,0.21445766]
[1737328707031,0.19801503,101210.0,101190.0,0.3202903]
[1737328707254,0.49015252,101210.0,101190.0,0.07195503]
[1737328707433,0.098823,101190.0,101180.0,0.03387561]
[1737328707641,0.39097549,101200.0,101180.0,0.44601727]
[1737328707843,0.48979949,101200.0,101180.0,0.44601827]
[1737328708106,0.09920703,101210.0,101200.0,0.03387561]
[1737328708399,0.00040303,101210.0,101200.0,0.26160253]
[1737328709087,0.098814,101200.0,101180.0,0.44600127]
[1737328709327,0.39134052,101210.0,101190.0,0.44598127]
[1737328709516,0.19372452,101210.0,101190.0,0.44598127]
[1737328709739,0.58984364,101210.0,101190.0,0.44598127]
[1737328709914,0.296443,101200.0,101180.0,0.33035961]
[1737328710108,0.296443,101200.0,101180.0,0.51588692]
[1737328710314,0.296443,101200.0,101190.0,0.11564366]
[1737328710519,0.098814,101200.0,101190.0,0.21446666]
[1737328710725,0.098814,101200.0,101180.0,0.30141326]
[1737328710928,0.098814,101200.0,101180.0,0.71353592]
[1737328711279,0.098823,101190.0,101180.0,0.21940292]
[1737328711484,0.197649,101190.0,101170.0,0.37456127]
[1737328711687,0.098833,101180.0,101170.0,0.11564366]
[1737328711910,0.098833,101180.0,101150.0,0.52239227]
[1737328711911,0.098843,101170.0,101150.0,0.52239227]
[1737328712113,0.39105549,101170.0,101150.0,0.21450366]
[1737328712320,0.098853,101160.0,101150.0,0.09886]
[1737328712522,0.09451349,101160.0,101140.0,0.16497276]
[1737328712729,0.19337649,101150.0,101140.0,0.0004291]
[1737328713098,0.19337649,101150.0,101140.0,0.0084671]
[1737328713256,0.098863,101150.0,101140.0,0.008621]
[1737328713474,0.19337649,101150.0,101140.0,0.008621]
[1737328713675,0.098863,101150.0,101140.0,0.14136861]
[1737328713896,0.098863,101150.0,101140.0,0.008621]
[1737328713897,0.19337649,101150.0,101140.0,0.008621]
[1737328714263,0.4161764,101150.0,101140.0,0.008621]
[1737328714472,0.25950088,101150.0,101140.0,0.008621]
[1737328714673,0.19337649,101150.0,101140.0,0.008621]
[1737328716140,0.19337649,101150.0,101140.0,0.000583]
[1737328716338,0.44385722,101150.0,101140.0,0.000583]
[1737328716694,0.29385722,101150.0,101140.0,0.000583]
[1737328716840,0.5661764,101150.0,101140.0,0.000583]
[1737328717042,0.86545201,101150.0,101140.0,0.000583]
[1737328717224,0.50005201,101150.0,101140.0,0.000583]
[1737328717426,0.62892184,101150.0,101140.0,0.000583]
[1737328717632,0.5945655,101150.0,101140.0,0.000583]
[1737328718484,0.50005201,101150.0,101140.0,0.000583]
[1737328718682,0.03435634,101140.0,101100.0,0.23029636]
[1737328718860,0.39116949,101130.0,101110.0,0.296704]
[1737328719062,0.098879,101140.0,101120.0,0.14951927]
[1737328719269,0.098882,101130.0,101120.0,0.14951927]
[1737328719483,0.19339549,101130.0,101120.0,0.02484153]
[1737328719676,0.098892,101120.0,101110.0,0.14951927]
[1737328719928,0.58895849,101130.0,101110.0,0.44621927]
[1737328720087,0.098892,101120.0,101110.0,0.24841627]
[1737328720437,0.09451349,101130.0,101120.0,0.098892]
[1737328720662,0.29663,101140.0,101120.0,0.33053561]
[1737328720887,0.29663,101140.0,101130.0,0.098882]
[1737328721108,0.29663,101140.0,101120.0,0.61892125]
[1737328721314,0.098882,101130.0,101120.0,0.22336725]
[1737328721524,0.098882,101130.0,101120.0,0.07384798]
[1737328721741,0.58895849,101130.0,101110.0,0.33057661]
[1737328721966,0.098888,101130.0,101120.0,0.13276761]
[1737328722173,0.494394,101140.0,101120.0,0.33055061]
[1737328722397,0.39114649,101140.0,101120.0,0.6094839]
[1737328722566,0.296603,101150.0,101130.0,0.33051861]
[1737328722785,0.098882,101130.0,101120.0,0.06439863]
[1737328722994,0.098892,101120.0,101110.0,0.03696798]
[1737328723175,0.49006849,101130.0,101110.0,0.31781658]
[1737328723333,0.296664,101130.0,101120.0,0.03387561]
[1737328723674,0.098887,101130.0,101120.0,0.03387561]
[1737328723855,0.098892,101120.0,101110.0,0.21891458]
[1737328724051,0.19340549,101120.0,101110.0,0.00309237]
[1737328724252,0.098892,101120.0,101110.0,0.03696798]
[1737328724453,0.494441,101130.0,101110.0,0.38019312]
[1737328724658,0.098892,101120.0,101110.0,0.19913378]
[1737328724869,0.19340549,101120.0,101110.0,0.00309237]
[1737328726185,0.296682,101120.0,101110.0,0.03387561]
[1737328726787,0.098902,101110.0,101100.0,0.26431899]
[1737328726988,0.098902,101110.0,101100.0,0.01588972]
[1737328727352,0.19341549,101110.0,101100.0,0.01588972]
[1737328727507,0.69508523,101110.0,101100.0,0.01588972]
[1737328727920,1.02612889,101110.0,101100.0,0.01588972]
[1737328728120,0.53444735,101110.0,101100.0,0.01588972]
[1737328728300,0.50009101,101110.0,101100.0,0.01588972]
[1737328728523,0.5662154,101110.0,101100.0,0.01588972]
[1737328729003,0.37777183,101110.0,101100.0,0.01588972]
[1737328729222,0.34341549,101110.0,101100.0,0.01588972]
[1737328729393,0.5972162,101110.0,101100.0,0.01588972]
[1737328729617,0.35397407,101110.0,101100.0,0.01588972]
[1737328729878,0.38833041,101110.0,101100.0,0.01588972]
[1737328730081,0.54500593,101110.0,101100.0,0.01588972]
[1737328730425,0.098921,101090.0,101080.0,0.0004269]
[1737328730614,0.19343449,101090.0,101080.0,0.00057458]
[1737328731226,0.35011001,101090.0,101080.0,0.00057458]
[1737328731568,0.19343449,101090.0,101080.0,0.00057458]
[1737328732298,0.098931,101080.0,101070.0,0.00309395]
[1737328732501,0.35012001,101080.0,101070.0,0.00324078]
[1737328733098,0.53447635,101080.0,101070.0,0.00324078]
[1737328733334,0.53447635,101080.0,101070.0,0.00014683]
[1737328733540,0.62898984,101080.0,101070.0,0.00014683]
[1737328734010,0.19344449,101080.0,101070.0,0.00014683]
[1737328734168,0.098931,101080.0,101070.0,0.00014683]
[1737328734612,0.19344449,101080.0,101070.0,0.00014683]
[1737328735387,0.19344449,101080.0,101070.0,0.02660758]
[1737328735598,0.098931,101080.0,101070.0,0.12554858]
[1737328735789,0.098921,101090.0,101080.0,0.14210441]
[1737328736015,0.098921,101090.0,101080.0,0.02646075]
[1737328736351,0.098921,101090.0,101080.0,0.14210441]
[1737328736352,0.296781,101090.0,101080.0,0.14210441]
[1737328736626,0.098931,101080.0,101070.0,0.26475124]
[1737328736825,0.296786,101090.0,101080.0,0.02646075]
[1737328736992,0.296786,101090.0,101080.0,0.07036727]
[1737328737328,0.098931,101080.0,101070.0,0.00014683]
[1737328737527,0.50012001,101080.0,101070.0,0.00014683]
[1737328737800,0.53447635,101080.0,101070.0,0.00014683]
[1737328738004,0.098951,101060.0,101050.0,0.0004285]
[1737328738206,0.35014001,101060.0,101050.0,0.000928]
[1737328738405,0.4446535,101060.0,101050.0,0.000928]
[1737328738616,0.35014001,101060.0,101050.0,0.000928]
[1737328739197,0.03435634,101050.0,101040.0,0.00495146]
[1737328739398,0.28332634,101040.0,101030.0,0.00089985]
[1737328739604,0.099,101010.0,101000.0,0.99704503]
[1737328739808,0.099,101010.0,101000.0,1.02350578]
[1737328740052,0.099,101010.0,101000.0,1.11801927]
[1737328740619,0.35018901,101010.0,101000.0,0.99704503]
[1737328740866,0.19351349,101010.0,101000.0,0.99719219]
[1737328741015,0.35018901,101010.0,101000.0,0.99719219]
[1737328741630,0.50018901,101010.0,101000.0,0.99719219]
[1737328742012,0.6080846,101010.0,101000.0,1.00028881]
[1737328742210,0.74864175,101010.0,101000.0,0.55750458]
[1737328742411,0.099009,101000.0,100990.0,0.0157418]
[1737328742636,0.099009,101000.0,100980.0,0.00249607]
[1737328742637,0.099019,100990.0,100980.0,0.00249607]
[1737328742810,0.099019,100990.0,100970.0,0.0004295]
[1737328742811,0.099029,100980.0,100970.0,0.0004295]
[1737328743017,0.42485031,100980.0,100970.0,8.65e-05]
[1737328743215,0.45920665,100980.0,100970.0,8.65e-05]
[1737328743454,0.35021801,100980.0,100970.0,8.65e-05]
[1737328743688,0.50021801,100980.0,100970.0,8.65e-05]
[1737328744091,0.13339534,100970.0,100960.0,0.0004295]
[1737328744266,0.50022801,100970.0,100960.0,0.00052949]
[1737328744428,0.50022801,100970.0,100930.0,0.00619645]
[1737328744429,0.099068,100940.0,100930.0,0.00619645]
[1737328744646,0.49314106,100940.0,100930.0,0.00669573]
[1737328744855,0.49314106,100940.0,100930.0,0.00049928]
[1737328745058,0.099098,100910.0,100900.0,0.001]
[1737328745394,0.25577352,100910.0,100900.0,0.02746075]
[1737328745555,0.29012986,100910.0,100900.0,0.02746075]
[1737328745757,0.38464335,100910.0,100900.0,0.001]
[1737328745969,0.63058111,100910.0,100900.0,0.001]
[1737328746232,0.20700359,100900.0,100890.0,0.0173949]
[1737328746461,0.38465335,100900.0,100890.0,0.0173949]
[1737328746751,0.32265625,100890.0,100880.0,0.02259353]
[1737328746949,0.53466235,100890.0,100880.0,0.00702308]
[1737328747182,0.50030601,100890.0,100880.0,0.00702308]
[1737328747366,0.19363049,100890.0,100880.0,0.00702308]
[1737328747588,0.09501526,100890.0,100880.0,0.22179374]
[1737328747821,0.00050177,100890.0,100880.0,0.23052749]
[1737328748075,0.00050177,100890.0,100880.0,0.40231625]
[1737328748268,0.00050177,100890.0,100880.0,0.56922974]
[1737328748470,0.00050177,100890.0,100880.0,0.64622974]
[1737328748684,0.00050177,100890.0,100880.0,0.45171625]
[1737328749246,0.00050177,100890.0,100880.0,0.80290526]
[1737328749417,0.00050177,100890.0,100880.0,0.54622974]
[1737328749596,0.00050177,100890.0,100880.0,0.27992749]
[1737328749802,0.19413226,100890.0,100880.0,0.27992749]
[1737328750023,0.00050177,100890.0,100880.0,0.27992749]
[1737328750192,0.00050177,100890.0,100880.0,0.37905449]
[1737328750752,0.19413226,100890.0,100880.0,0.13782308]
[1737328751012,0.27301199,100890.0,100880.0,0.13782308]
[1737328751211,0.27301199,100890.0,100880.0,0.00702308]
[1737328751390,0.19413226,100890.0,100880.0,0.00702308]
[1737328752122,0.249127,100880.0,100870.0,0.0004301]
[1737328752241,0.20704259,100860.0,100850.0,0.005]
[1737328752435,0.099157,100850.0,100840.0,0.1389538]
[1737328752731,0.23264634,100870.0,100840.0,0.30916403]
[1737328752732,0.297428,100870.0,100840.0,0.30916403]
[1737328752905,0.099147,100860.0,100850.0,0.14210441]
[1737328753117,0.099157,100850.0,100840.0,0.36385821]
[1737328753322,0.19367049,100850.0,100840.0,0.1389538]
[1737328753489,0.35034601,100850.0,100840.0,0.1389538]
[1737328753704,0.53922902,100850.0,100840.0,0.1389538]
[1737328753915,0.59689343,100850.0,100840.0,0.1389538]
[1737328754860,0.40585152,100830.0,100820.0,4e-07]
[1737328755021,0.32273525,100810.0,100800.0,0.12860337]
[1737328755224,0.62603669,100810.0,100740.0,0.13341603]
[1737328755429,0.099248,100760.0,100740.0,0.099262]
[1737328755628,0.099285,100720.0,100710.0,4.132e-05]
[1737328755834,0.41110601,100720.0,100710.0,4.132e-05]
[1737328756066,0.35036992,100720.0,100710.0,4.132e-05]
[1737328756241,0.099295,100710.0,100700.0,0.00133932]
[1737328756443,0.099295,100710.0,100680.0,0.00044069]
[1737328756444,0.249314,100690.0,100680.0,7.1e-07]
[1737328756666,0.35118901,100690.0,100660.0,0.09504443]
[1737328756886,0.19451349,100670.0,100660.0,0.37500291]
[1737328757093,0.09451349,100670.0,100660.0,0.07697491]
[1737328757206,0.397294,100690.0,100660.0,0.07697491]
[1737328757422,0.099296,100710.0,100670.0,0.1997]
[1737328757617,0.09451349,100700.0,100670.0,0.39934724]
[1737328757821,0.15,100740.0,100700.0,0.099302]
[1737328758024,0.15,100740.0,100680.0,0.52843301]
[1737328758274,0.00050023,100700.0,100690.0,0.00099294]
[1737328758443,0.099314,100690.0,100680.0,0.07856]
[1737328758648,0.099324,100680.0,100670.0,0.0497]
[1737328758880,0.099334,100670.0,100660.0,0.07076274]
[1737328759069,0.19384749,100670.0,100660.0,0.07076274]
[1737328759276,0.34384749,100670.0,100660.0,0.07076274]
[1737328759482,0.099344,100660.0,100650.0,4.5e-07]
[1737328759674,0.44385749,100660.0,100650.0,4.5e-07]
[1737328759959,0.44385749,100660.0,100630.0,0.0019925]
[1737328759960,0.249364,100640.0,100630.0,0.0019925]
[1737328760165,0.249364,100640.0,100600.0,0.03654525]
[1737328760166,0.34923259,100610.0,100600.0,0.03654525]
[1737328760336,0.34923259,100610.0,100580.0,0.00621217]
[1737328760337,0.249413,100590.0,100580.0,0.00621217]
[1737328760504,0.49392649,100590.0,100580.0,0.00621217]
[1737328760704,0.099433,100570.0,100560.0,0.0004]
[1737328760893,0.19394649,100570.0,100560.0,0.0004]
[1737328761114,0.099453,100550.0,100540.0,0.05624347]
[1737328761296,0.34396649,100550.0,100540.0,0.05624347]
[1737328761505,0.39513816,100550.0,100540.0,0.05624347]
[1737328761754,0.249472,100530.0,100520.0,0.00181238]
[1737328761944,0.09451349,100530.0,100520.0,0.00181238]
[1737328762102,0.09451349,100530.0,100520.0,0.10129438]
[1737328762294,0.09451349,100530.0,100520.0,0.30490045]
[1737328762550,0.09451349,100530.0,100520.0,0.30506086]
[1737328762762,0.000499,100550.0,100540.0,0.39962241]
[1737328762763,0.09501249,100550.0,100540.0,0.39962241]
[1737328762920,0.09501249,100550.0,100540.0,0.20547552]
[1737328763134,0.01060569,100600.0,100550.0,0.00016041]
[1737328763341,0.09451349,100590.0,100580.0,0.1988]
[1737328763496,0.09451349,100590.0,100580.0,0.0488]
[1737328763732,0.0049993,100610.0,100590.0,0.00016041]
[1737328763927,0.09951279,100610.0,100600.0,0.181703]
[1737328764131,0.19890579,100610.0,100600.0,0.0823]
[1737328764378,0.1043953,100610.0,100590.0,0.00016041]
[1737328764526,0.09951279,100610.0,100590.0,0.00016041]
[1737328765012,0.09951279,100610.0,100600.0,0.09956341]
[1737328765123,0.0049993,100610.0,100600.0,0.08126341]
[1737328765327,0.0049993,100610.0,100600.0,0.13584105]
[1737328765528,0.0049993,100610.0,100600.0,0.53802399]
[1737328765768,0.298056,100660.0,100610.0,0.198776]
[1737328765978,0.09451349,100650.0,100610.0,0.09550726]
[1737328766173,0.348798,100610.0,100580.0,0.0488]
[1737328766374,0.348798,100610.0,100580.0,0.0489487]
[1737328766375,0.30310264,100590.0,100580.0,0.0489487]
[1737328766572,0.198893,100560.0,100540.0,0.0488]
[1737328766786,0.399462,100540.0,100530.0,0.0823]
[1737328766957,0.099472,100530.0,100520.0,0.00224248]
[1737328767164,0.09550726,100530.0,100520.0,0.00224248]
[1737328767390,0.2486689,100530.0,100520.0,0.00224248]
[1737328767596,0.34398549,100530.0,100520.0,0.00224248]
[1737328768157,0.29398549,100530.0,100520.0,0.00224248]
[1737328768330,0.19413509,100530.0,100520.0,0.00224248]
[1737328768468,0.2488185,100530.0,100520.0,0.00224248]
[1737328768681,0.24767513,100530.0,100520.0,0.00224248]
[1737328768883,0.19398549,100530.0,100520.0,0.00224248]
[1737328769125,0.05368964,100540.0,100530.0,0.099472]
[1737328769423,0.099445,100560.0,100540.0,0.099461]
[1737328769589,0.00099377,100560.0,100540.0,0.19891]
[1737328769798,0.198886,100560.0,100530.0,0.14132285]
[1737328769988,0.4475569,100550.0,100530.0,0.000499]
[1737328770208,0.35202764,100560.0,100530.0,0.000499]
[1737328770422,0.05368964,100570.0,100540.0,0.11751349]
[1737328770661,0.15310264,100590.0,100570.0,0.182127]
[1737328770847,0.05368964,100600.0,100580.0,0.198844]
[1737328771066,0.1988,100610.0,100600.0,0.099403]
[1737328771067,0.05368964,100610.0,100600.0,0.099403]
[1737328771302,0.05368964,100630.0,100600.0,0.29331949]
[1737328771506,0.35181264,100630.0,100610.0,0.145491]
[1737328771728,0.05368964,100630.0,100620.0,0.099383]
[1737328771888,0.05368964,100650.0,100630.0,0.198743]
[1737328772048,0.15305364,100640.0,100630.0,0.0802]
[1737328772251,0.05384077,100650.0,100630.0,0.179573]
[1737328772477,0.19487126,100640.0,100630.0,0.0802]
[1737328772650,0.19487126,100640.0,100590.0,0.0802]
[1737328772651,0.05368964,100600.0,100590.0,0.0802]
[1737328772937,0.19391649,100600.0,100590.0,0.0802]
[1737328773260,0.09451349,100600.0,100590.0,0.179613]
[1737328773459,0.05368964,100610.0,100590.0,0.179609]
[1737328773723,0.15307364,100620.0,100600.0,0.298202]
[1737328773864,0.00015105,100610.0,100600.0,0.099403]
[1737328774068,0.00015105,100610.0,100600.0,0.33779635]
[1737328774266,0.19871,100650.0,100630.0,0.198744]
[1737328774267,0.05368964,100650.0,100630.0,0.198744]
[1737328774509,0.099364,100640.0,100630.0,0.0453]
[1737328774711,0.2485609,100640.0,100630.0,0.0453]
[1737328774914,0.35055301,100640.0,100630.0,0.0453]
[1737328775060,0.4450665,100640.0,100630.0,0.0453]
[1737328775285,0.4450665,100640.0,100590.0,0.179606]
[1737328775286,0.25246164,100620.0,100600.0,0.0462939]
[1737328775484,0.099393,100610.0,100600.0,0.0453]
[1737328775681,0.2485899,100610.0,100600.0,0.0453]
[1737328775891,0.19390649,100610.0,100600.0,0.0453]
[1737328776095,0.19490026,100610.0,100600.0,0.0453]
[1737328776312,0.2485899,100610.0,100600.0,0.0453]
[1737328776514,0.099403,100600.0,100590.0,0.0802]
[1737328776753,0.35059201,100600.0,100590.0,0.0802]
[1737328777514,0.099433,100570.0,100560.0,0.1275]
[1737328777723,0.15315564,100540.0,100530.0,0.0822]
[1737328777930,0.40533842,100540.0,100530.0,0.0822]
[1737328778257,0.099472,100530.0,100520.0,0.04754248]
[1737328778458,0.19398549,100530.0,100520.0,0.04754248]
[1737328778638,0.35066101,100530.0,100520.0,0.04754248]
[1737328779700,0.35066101,100530.0,100520.0,0.04804148]
[1737328780062,0.19398549,100530.0,100520.0,0.04804148]
[1737328780241,0.19497926,100530.0,100520.0,0.04804148]
[1737328780443,0.35165478,100530.0,100520.0,0.04804148]
[1737328780597,0.35066101,100530.0,100520.0,0.04804148]
[1737328780796,0.28849898,100530.0,100520.0,0.04804148]
[1737328780997,0.19398549,100530.0,100520.0,0.04804148]
[1737328781220,0.19497926,100530.0,100520.0,0.04804148]
[1737328781419,0.2486689,100530.0,100520.0,0.04804148]
[1737328781625,0.24767513,100530.0,100520.0,0.04804148]
[1737328781792,0.19398549,100530.0,100520.0,0.04804148]
[1737328781987,0.24767513,100530.0,100520.0,0.04804148]
[1737328782575,0.1156,100560.0,100540.0,0.099462]
[1737328782576,0.35203964,100560.0,100540.0,0.099462]
[1737328782765,0.05368964,100570.0,100560.0,0.04374939]
[1737328782959,0.06928964,100590.0,100570.0,0.0453]
[1737328783268,0.11601177,100590.0,100570.0,0.0683]
[1737328783470,0.15410341,100590.0,100570.0,0.0453]